fUST/lending_fUST_20240703
["ID","MTS","AMOUNT","RATE_DAILY","PERIOD"]
[331011045,1720003844058,-500.0,0.00015639,2]
[331011047,1720003844068,-1029.58,0.00015639,2]
[331011049,1720003844080,-3119.08,0.00015639,2]
[331011051,1720003844091,-500.0,0.00015639,2]
[331011053,1720003844101,-733.82,0.00015639,2]
[331011055,1720003844111,-500.0,0.00015639,2]
[331011057,1720003844121,-500.0,0.00015639,2]
[331011059,1720003844131,-500.0,0.0001564,2]
[331011061,1720003844141,-839.05,0.0001564,2]
[331011063,1720003844151,-500.0,0.0001564,2]
[331011065,1720003844162,-590.95,0.0001564,2]
[331011066,1720003844172,-500.0,0.0001564,2]
[331011068,1720003844182,-500.0,0.0001564,2]
[331011070,1720003844192,-500.0,0.0001564,2]
[331011073,1720003844202,-500.0,0.0001564,2]
[331011075,1720003844212,-1783.92,0.0001564,2]
[331011077,1720003844224,-500.0,0.0001564,2]
[331011079,1720003844235,-2646.72,0.0001564,2]
[331011080,1720003844245,-500.0,0.0001564,2]
[331011082,1720003844256,-500.0,0.0001564,2]
[331011084,1720003844267,-500.0,0.0001564,2]
[331011086,1720003844278,-301.24,0.0001564,2]
[331011088,1720003844289,-500.0,0.0001564,2]
[331011090,1720003844299,-543.46,0.0001564,2]
[331011092,1720003844310,-719.02,0.00015641,2]
[331011094,1720003844323,-2533.07,0.00015641,2]
[331011096,1720003844336,-554.0,0.00015641,2]
[331011098,1720003844346,-500.0,0.00015641,2]
[331011100,1720003844357,-500.0,0.00015641,2]
[331011102,1720003844368,-3289.26,0.00015641,2]
[331011104,1720003844378,-1377.54,0.00015641,2]
[331011106,1720003844388,-500.0,0.00015641,2]
[331011108,1720003844399,-500.0,0.00015641,2]
[331011109,1720003844410,-151.0,0.00015641,2]
[331011111,1720003844420,-2556.65,0.00015641,2]
[331011113,1720003844431,-151.0,0.00015641,2]
[331011115,1720003844440,-500.0,0.00015641,2]
[331011117,1720003844450,-500.0,0.00015641,2]
[331011119,1720003844460,-500.0,0.00015641,2]
[331011121,1720003844470,-211.18495466,0.00015641,2]
[331011138,1720003844632,908.22919531,9.999e-05,2]
[331011140,1720003844691,509.97923553,9.999e-05,2]
[331011142,1720003845317,-182.56981161,0.00014794,2]
[331011143,1720003845330,-306.33063846,0.00014794,2]
[331011144,1720003845340,-288.81504534,0.00015641,2]
[331011145,1720003845351,-500.0,0.00015641,2]
[331011146,1720003845513,-407.61725278,0.00015641,2]
[331011147,1720003845527,-500.0,0.00015641,2]
[331011148,1720003845540,-500.0,0.00015642,2]
[331011149,1720003845549,-415.84784736,0.00015642,2]
[331011150,1720003845561,-500.0,0.00015642,2]
[331011151,1720003845570,-4624.99401346,0.00015642,2]
[331011152,1720003845582,-714.64598654,0.00015642,2]
[331011154,1720003845592,-500.0,0.00015642,2]
[331011156,1720003845602,-737.76,0.00015642,2]
[331011158,1720003845611,-456.14121346,0.00015899,2]
[331011160,1720003845622,-87.31878654,0.00015899,2]
[331011162,1720003845631,-543.46,0.00015899,2]
[331011164,1720003845641,-543.46,0.00015899,2]
[331011166,1720003845650,-543.46,0.00015899,2]
[331011168,1720003845660,-543.46,0.00015899,2]
[331011169,1720003845670,-543.46,0.00015899,2]
[331011171,1720003845680,-543.46,0.00015899,2]
[331011173,1720003845690,-323.69080199,0.00015899,2]
[331011363,1720003847268,-500.0,0.00014817,2]
[331011364,1720003847280,-66.1300923,0.00015091,2]
[331011365,1720003847293,-433.8699077,0.00015091,2]
[331011366,1720003847302,-500.0,0.00015365,2]
[331011367,1720003847312,-219.76919801,0.00015899,2]
[331011369,1720003847323,-42.23089429,0.00015899,2]
[331011371,1720003847338,-501.22910571,0.00015899,2]
[331011373,1720003847347,-543.46,0.00015899,2]
[331011375,1720003847358,-543.46,0.00015899,2]
[331011377,1720003847368,-543.46,0.00015899,2]
[331011379,1720003847378,-543.46,0.00015899,2]
[331011380,1720003847387,-328.78089429,0.00015899,2]
[331011407,1720003848571,208.58026971,9.999e-05,2]
[331011408,1720003874743,155.25004281,0.0001212,2]
[331011409,1720003883771,209.96263799,0.0001212,2]
[331011410,1720003886395,1916.08274499,0.0001212,2]
[331011411,1720003886950,167.01957246,0.0001,2]
[331011412,1720003887072,2126.25063044,0.0001212,2]
[331011413,1720003894879,509.97923553,0.0001212,2]
[331011414,1720003895325,182.9613486,0.0001212,2]
[331011415,1720003896773,2222.6039705,0.0001212,2]
[331011416,1720003897879,155.0,0.0001212,2]
[331011417,1720003898797,9613.72128119,0.0001212,2]
[331011418,1720003899716,3137.5012568,0.0001212,2]
[331011419,1720003901145,158.08265594,0.0001212,2]
[331011420,1720003901758,2222.6039705,0.0001212,2]
[331011421,1720003907390,2118.1707799,0.0001212,2]
[331011422,1720003907492,4710.36485402,0.0001212,2]
[331011423,1720003915568,404.78265769,0.0001212,2]
[331011425,1720003926507,11132.49087476,0.0001212,2]
[331011426,1720003927575,3078.21561801,0.0001212,2]
[331011428,1720003974754,202.77911483,9.999e-05,2]
[331011429,1720003995545,155.83405842,9.999e-05,2]
[331011431,1720004008388,225.5641183,0.0001212,2]
[331011432,1720004012382,509.97923553,9.999e-05,2]
[331011436,1720004054896,509.73256173,0.0001212,2]
[331011446,1720004522488,150.0,0.0001,2]
[331011450,1720004688680,-150.0,0.00014271,2]
[331011453,1720004849169,-569.23,0.00014271,2]
[331011454,1720004849191,-2005.35,0.00014271,2]
[331011455,1720004849212,-500.0,0.00014271,2]
[331011456,1720004849386,-500.0,0.00014271,2]
[331011457,1720004849418,-500.0,0.00014272,2]
[331011458,1720004849440,-2603.99,0.00014272,2]
[331011459,1720004849461,-1090.55,0.00014272,2]
[331011460,1720004849482,-569.23,0.00014545,2]
[331011461,1720004849504,-2005.35,0.00014545,2]
[331011462,1720004849525,-500.0,0.00014545,2]
[331011463,1720004849548,-500.0,0.00014545,2]
[331011464,1720004849568,-500.0,0.00014546,2]
[331011465,1720004849589,-2603.99,0.00014546,2]
[331011466,1720004849612,-1090.55,0.00014546,2]
[331011467,1720004849638,-877.0,0.00014563,2]
[331011468,1720004849660,-305.0,0.00014793,2]
[331011469,1720004849682,-500.0,0.00014793,2]
[331011470,1720004849702,-699.21,0.00014793,2]
[331011471,1720004849725,-500.0,0.00014793,2]
[331011472,1720004849744,-500.0,0.00014793,2]
[331011473,1720004849764,-500.0,0.00014793,2]
[331011474,1720004849784,-500.0,0.00014793,2]
[331011475,1720004849805,-595.48,0.00014793,2]
[331011476,1720004849825,-508.71,0.00014793,2]
[331011477,1720004849846,-500.0,0.00014793,2]
[331011478,1720004849867,-500.0,0.00014793,2]
[331011479,1720004849888,-2205.6,0.00014793,2]
[331011480,1720004849910,-857.98,0.00014793,2]
[331011481,1720004849931,-346.33606268,0.00014793,2]
[331011482,1720004849952,-2673.62,0.00014793,2]
[331011483,1720004849972,-500.0,0.00014793,2]
[331011484,1720004849993,-500.0,0.00014793,2]
[331011485,1720004850015,-500.0,0.00014793,2]
[331011486,1720004850037,-611.51,0.00014793,2]
[331011487,1720004850058,-500.0,0.00014793,2]
[331011488,1720004850081,-1486.6,0.00014793,2]
[331011489,1720004850103,-500.0,0.00014793,2]
[331011490,1720004850138,-500.0,0.00014793,2]
[331011491,1720004850161,-500.0,0.00014793,2]
[331011492,1720004850182,-1434.31145513,0.00014794,2]
[331011493,1720004850203,-3137.5012568,0.00014794,2]
[331011494,1720004850224,-1351.9774817,0.00014794,2]
[331011495,1720004850245,-4710.36485402,0.00014794,2]
[331011496,1720004850269,-1634.42600407,0.00014794,2]
[331011497,1720004850290,-1157.97666863,0.00014794,2]
[331011498,1720004850310,-9613.72128119,0.00014794,2]
[331011499,1720004850330,-3078.21561801,0.00014794,2]
[331011500,1720004850350,-1463.15950404,0.00014794,2]
[331011501,1720004850370,-11132.49087476,0.00014794,2]
[331011502,1720004850389,-2118.1707799,0.00014794,2]
[331011503,1720004850408,-2126.25063044,0.00014794,2]
[331011504,1720004850429,-500.0,0.00014817,2]
[331011505,1720004850450,-500.0,0.00014817,2]
[331011506,1720004850474,-500.0,0.00014818,2]
[331011507,1720004850495,-2130.54,0.00014818,2]
[331011508,1720004850516,-500.0,0.00014818,2]
[331011509,1720004850537,-500.0,0.00014818,2]
[331011510,1720004850557,-500.0,0.00014818,2]
[331011511,1720004850578,-500.0,0.00014818,2]
[331011512,1720004850602,-500.0,0.00014818,2]
[331011513,1720004850629,-500.0,0.00014818,2]
[331011514,1720004850651,-500.0,0.00014818,2]
[331011515,1720004850673,-569.23,0.00014819,2]
[331011516,1720004850695,-2005.35,0.00014819,2]
[331011517,1720004850721,-4004.73,0.00014819,2]
[331011518,1720004850742,-328.69896595,0.00014819,2]
[331011519,1720004850762,-500.0,0.00014819,2]
[331011520,1720004850784,-547.07,0.00014819,2]
[331011521,1720004850806,-500.0,0.00014819,2]
[331011522,1720004850828,-500.0,0.0001482,2]
[331011523,1720004850852,-2603.99,0.0001482,2]
[331011524,1720004850876,-1090.55,0.0001482,2]
[331011525,1720004850898,-500.0,0.00014949,2]
[331011526,1720004850919,-500.0,0.00014997,2]
[331011527,1720004850939,-500.0,0.00014997,2]
[331011528,1720004850959,-500.0,0.00014997,2]
[331011529,1720004850978,-500.0,0.00014997,2]
[331011530,1720004850999,-500.0,0.00014998,2]
[331011531,1720004851030,-2831.83646381,0.00015,2]
[331011532,1720004851055,-1550.77973598,0.00015,2]
[331011533,1720004851085,-948.76659777,0.00015,2]
[331011534,1720004851109,-395.39220748,0.00015,2]
[331011535,1720004851134,-1038.98711475,0.00015,2]
[331011536,1720004851160,-2420.33375199,0.00015,2]
[331011537,1720004851187,-345.218,0.0001505,2]
[331011538,1720004851214,-29619.6041217,0.00015051,2]
[331011687,1720005039547,-500.0,0.00014271,2]
[331011689,1720005039557,-498.86887158,0.00014271,2]
[331012204,1720005123503,1157.97666863,9.999e-05,2]
[331012207,1720005185524,195.36743126,0.0001,2]
[331012208,1720005240459,162.6194407,0.0001212,2]
[331012209,1720005244704,5514.29734674,0.00015,10]
[331012210,1720005245447,500.0,0.00014,2]
[331012222,1720005368348,1157.97666863,9.999e-05,2]
[331012224,1720005428014,1157.97666863,0.0001212,2]
[331012234,1720005587543,16224.55368214,0.0001212,2]
[331012238,1720005633592,11047.0331081,0.00013808,2]
[331012292,1720006238996,-313.92,0.00014555,2]
[331012294,1720006239007,-877.0,0.00014641,2]
[331012296,1720006239017,-300.0,0.00014792,2]
[331012297,1720006239026,-500.0,0.00014793,2]
[331012298,1720006239041,-500.0,0.00014793,2]
[331012299,1720006239051,-500.0,0.00014793,2]
[331012300,1720006239062,-500.0,0.00014793,2]
[331012301,1720006239072,-500.0,0.00014793,2]
[331012302,1720006239082,-500.0,0.00014793,2]
[331012303,1720006239092,-500.0,0.00014793,2]
[331012304,1720006239102,-500.0,0.00014793,2]
[331012305,1720006239112,-500.0,0.00014793,2]
[331012306,1720006239125,-500.0,0.00014793,2]
[331012307,1720006239138,-500.0,0.00014793,2]
[331012308,1720006239148,-500.0,0.00014793,2]
[331012309,1720006239157,-500.0,0.00014793,2]
[331012310,1720006239177,-500.0,0.00014793,2]
[331012311,1720006239190,-500.0,0.00014793,2]
[331012312,1720006239202,-1157.97666863,0.00014794,2]
[331012313,1720006239212,-3837.87,0.00014818,2]
[331012314,1720006239223,-500.0,0.00014818,2]
[331012315,1720006239233,-500.0,0.00014818,2]
[331012316,1720006239244,-500.0,0.00014818,2]
[331012317,1720006239254,-500.0,0.00014818,2]
[331012318,1720006239264,-500.0,0.00014818,2]
[331012319,1720006239275,-500.0,0.00014818,2]
[331012320,1720006239284,-500.0,0.00014818,2]
[331012321,1720006239295,-500.0,0.00014818,2]
[331012322,1720006239304,-496.38676738,0.00014818,2]
[331012330,1720006241007,-3.61323262,0.00014818,2]
[331012332,1720006241018,-500.0,0.00014818,2]
[331012334,1720006241028,-500.0,0.00014818,2]
[331012336,1720006241042,-524.27,0.00014818,2]
[331012338,1720006241053,-500.0,0.00014818,2]
[331012339,1720006241063,-1754.68,0.00014818,2]
[331012341,1720006241074,-500.0,0.00014818,2]
[331012343,1720006241086,-500.0,0.00014818,2]
[331012345,1720006241096,-500.0,0.00014818,2]
[331012347,1720006241107,-110.65542237,0.00014818,2]
[331012468,1720006244045,-389.34457763,0.00014818,2]
[331012469,1720006244055,-347.67868595,0.00014818,2]
[331012471,1720006244065,-500.0,0.00014818,2]
[331012473,1720006244076,-500.0,0.00014818,2]
[331012476,1720006244085,-500.0,0.00014818,2]
[331012479,1720006244094,-500.0,0.00014818,2]
[331012482,1720006244104,-2257.71,0.00014818,2]
[331012485,1720006244113,-500.0,0.00014818,2]
[331012487,1720006244125,-954.23,0.00014818,2]
[331012489,1720006244137,-500.0,0.00014818,2]
[331012491,1720006244148,-500.0,0.00014818,2]
[331012493,1720006244157,-153.0,0.00014906,2]
[331012495,1720006244168,-153.0,0.00014908,2]
[331012497,1720006244177,-153.0,0.00014908,2]
[331012499,1720006244187,-153.0,0.00014909,2]
[331012501,1720006244197,-153.0,0.00014909,2]
[331012503,1720006244208,-153.0,0.00014909,2]
[331012505,1720006244218,-153.0,0.00014955,2]
[331012507,1720006244228,-153.0,0.00014956,2]
[331012509,1720006244237,-153.0,0.00014956,2]
[331012511,1720006244247,-153.0,0.00014956,2]
[331012513,1720006244257,-153.0,0.00014957,2]
[331012515,1720006244268,-519.9,0.00014995,2]
[331012517,1720006244277,-2923.34,0.00014995,2]
[331012519,1720006244287,-500.0,0.00014995,2]
[331012521,1720006244297,-636.56,0.00014995,2]
[331012523,1720006244307,-1060.45791743,0.00014996,2]
[331012525,1720006244316,-500.0,0.00014996,2]
[331012527,1720006244326,-500.0,0.00014996,2]
[331012529,1720006244336,-622.06,0.00014996,2]
[331012531,1720006244345,-500.0,0.00014996,2]
[331012533,1720006244355,-500.0,0.00014996,2]
[331012535,1720006244365,-237.54374635,0.00014996,2]
[331012780,1720006433488,1157.97666863,9.999e-05,2]
[331012781,1720006478894,1157.97666863,0.0001212,2]
[331012876,1720007437969,-153.0,0.00014582,2]
[331012877,1720007437978,-153.0,0.00014582,2]
[331012878,1720007437988,-153.0,0.00014583,2]
[331012879,1720007437997,-153.0,0.00014631,2]
[331012880,1720007438007,-153.0,0.00014631,2]
[331012881,1720007438017,-153.0,0.00014631,2]
[331012882,1720007438027,-877.0,0.0001474,2]
[331012883,1720007438037,-153.0,0.00014776,2]
[331012885,1720007438047,-153.0,0.00014777,2]
[331012886,1720007438056,-500.0,0.00014793,2]
[331012888,1720007438066,-2073.49,0.00014793,2]
[331012889,1720007438076,-502.43,0.00014793,2]
[331012891,1720007438086,-914.47,0.00014793,2]
[331012893,1720007438095,-500.0,0.00014793,2]
[331012894,1720007438105,-500.0,0.00014793,2]
[331012895,1720007438115,-1681.57,0.00014793,2]
[331012896,1720007438125,-500.0,0.00014793,2]
[331012897,1720007438135,-1157.97666863,0.00014794,2]
[331012900,1720007438145,-423.59173869,0.00014818,2]
[331012902,1720007438158,-174.94478434,0.00014895,2]
[331012903,1720007438167,-166.50736672,0.00014896,2]
[331012904,1720007438177,-500.0,0.00014995,2]
[331012905,1720007438187,-2307.67,0.00014995,2]
[331012906,1720007438196,-252.49816162,0.00014995,2]
[331012907,1720007438219,-247.50183838,0.00014995,2]
[331012908,1720007438228,-500.0,0.00014995,2]
[331012909,1720007438238,-500.0,0.00014995,2]
[331012910,1720007438248,-500.0,0.00014995,2]
[331012911,1720007438257,-500.0,0.00014995,2]
[331012912,1720007438267,-500.0,0.00014995,2]
[331012913,1720007438277,-500.0,0.00014995,2]
[331012914,1720007438286,-631.7979615,0.00014995,2]
[331012915,1720007438295,-500.0,0.00014995,2]
[331012916,1720007438304,-500.0,0.00014995,2]
[331012917,1720007438314,-500.0,0.00014995,2]
[331012918,1720007438324,-500.0,0.00014995,2]
[331012919,1720007438333,-500.0,0.00014995,2]
[331012920,1720007438342,-500.0,0.00014995,2]
[331012921,1720007438351,-500.0,0.00014995,2]
[331012922,1720007438361,-500.0,0.00014995,2]
[331012923,1720007438371,-500.0,0.00014995,2]
[331012924,1720007438384,-500.0,0.00014995,2]
[331012925,1720007438396,-705.20309454,0.00014995,2]
[331012926,1720007438410,-1499.54690546,0.00014995,2]
[331012927,1720007438420,-645.39,0.00014995,2]
[331012928,1720007438430,-500.0,0.00014995,2]
[331012929,1720007438441,-164.16759645,0.00014995,2]
[331012934,1720007440341,-335.83240355,0.00014995,2]
[331012935,1720007440351,-519.08,0.00014995,2]
[331012936,1720007440362,-500.0,0.00014995,2]
[331012937,1720007440371,-1088.27,0.00014995,2]
[331012938,1720007440382,-500.0,0.00014995,2]
[331012939,1720007440396,-500.0,0.00014995,2]
[331012940,1720007440405,-2971.74,0.00014995,2]
[331012941,1720007440415,-500.0,0.00014995,2]
[331012942,1720007440424,-500.0,0.00014995,2]
[331012943,1720007440435,-500.0,0.00014995,2]
[331012944,1720007440444,-500.0,0.00014995,2]
[331012945,1720007440454,-500.0,0.00014995,2]
[331012946,1720007440463,-500.0,0.00014995,2]
[331012947,1720007440474,-658.46,0.00014995,2]
[331012948,1720007440483,-500.0,0.00014995,2]
[331012949,1720007440493,-1766.56,0.00014995,2]
[331012950,1720007440502,-530.22895871,0.00014996,2]
[331012951,1720007440512,-500.0,0.00014996,2]
[331012952,1720007440522,-584.69,0.00014996,2]
[331012953,1720007440532,-500.0,0.00014996,2]
[331012954,1720007440542,-507.98,0.00014996,2]
[331012955,1720007440552,-120.65863773,0.00014996,2]
[331012978,1720007443094,-379.34136227,0.00014996,2]
[331012979,1720007443104,-207.79128227,0.00014996,2]
[331012980,1720007443114,-500.0,0.00014996,2]
[331012981,1720007443123,-500.0,0.00014996,2]
[331012982,1720007443132,-500.0,0.00014996,2]
[331012983,1720007443141,-500.0,0.00014996,2]
[331012984,1720007443151,-485.00134534,0.00014996,2]
[331012985,1720007443162,-14.99865466,0.00014996,2]
[331012986,1720007443171,-500.0,0.00014996,2]
[331012987,1720007443180,-500.0,0.00014996,2]
[331012988,1720007443190,-500.0,0.00014996,2]
[331012989,1720007443199,-500.0,0.00014996,2]
[331012990,1720007443208,-500.0,0.00014996,2]
[331012991,1720007443218,-500.0,0.00014996,2]
[331012992,1720007443227,-500.0,0.00014996,2]
[331012993,1720007443237,-500.0,0.00014996,2]
[331012994,1720007443246,-500.0,0.00014996,2]
[331012995,1720007443255,-500.0,0.00014996,2]
[331012996,1720007443264,-500.0,0.00014996,2]
[331012997,1720007443273,-500.0,0.00014996,2]
[331012998,1720007443282,-500.0,0.00014996,2]
[331012999,1720007443291,-500.0,0.00014996,2]
[331013000,1720007443300,-500.0,0.00014996,2]
[331013001,1720007443309,-500.0,0.00014996,2]
[331013002,1720007443319,-500.0,0.00014996,2]
[331013003,1720007443328,-500.0,0.00014996,2]
[331013004,1720007443338,-380.35012432,0.00014997,2]
[331013005,1720007443347,-500.0,0.00014997,2]
[331013006,1720007443356,-500.0,0.00014997,2]
[331013007,1720007443365,-327.8101,0.00014997,2]
[331013008,1720007443374,-500.0,0.00014997,2]
[331013009,1720007443384,-500.0,0.00014997,2]
[331013010,1720007443395,-500.0,0.00014997,2]
[331013011,1720007443407,-500.0,0.00014997,2]
[331013012,1720007443416,-500.0,0.00014997,2]
[331013013,1720007443425,-9613.72128119,0.00014998,2]
[331013014,1720007443434,-11132.49087476,0.00014998,2]
[331013015,1720007443444,-3677.96,0.00014998,2]
[331013016,1720007443453,-2118.1707799,0.00014999,2]
[331013017,1720007443463,-3078.21561801,0.00014999,2]
[331013018,1720007443472,-1634.42600407,0.00014999,2]
[331013019,1720007443483,-2126.25063044,0.00014999,2]
[331013020,1720007443493,-3137.5012568,0.00014999,2]
[331013021,1720007443503,-1434.31145513,0.00014999,2]
[331013022,1720007443512,-1463.15950404,0.00014999,2]
[331013023,1720007443521,-4710.36485402,0.00014999,2]
[331013024,1720007443530,-1038.98711475,0.00015,2]
[331013025,1720007443539,-2420.33375199,0.00015,2]
[331013026,1720007443549,-948.76659777,0.00015,2]
[331013027,1720007443558,-395.39220748,0.00015,2]
[331013028,1720007443568,-807.95624244,0.00015,2]
[331013029,1720007443578,-2831.83646381,0.00015,2]
[331013030,1720007443588,-380.3958783,0.00015051,2]
[331013031,1720007443597,-155.0,0.00015051,2]
[331013032,1720007443607,-500.0,0.00015067,2]
[331013033,1720007443617,-2073.49,0.00015067,2]
[331013034,1720007443627,-502.43,0.00015067,2]
[331013035,1720007443637,-914.47,0.00015067,2]
[331013036,1720007443646,-500.0,0.00015067,2]
[331013037,1720007443655,-500.0,0.00015067,2]
[331013038,1720007443665,-1681.57,0.00015067,2]
[331013039,1720007443674,-500.0,0.00015067,2]
[331013040,1720007443683,-2307.67,0.00015269,2]
[331013041,1720007443693,-500.0,0.00015269,2]
[331013042,1720007443702,-500.0,0.00015269,2]
[331013043,1720007443712,-500.0,0.00015269,2]
[331013044,1720007443721,-500.0,0.00015269,2]
[331013045,1720007443731,-500.0,0.00015269,2]
[331013046,1720007443740,-500.0,0.00015269,2]
[331013047,1720007443750,-500.0,0.00015269,2]
[331013048,1720007443761,-500.0,0.00015269,2]
[331013049,1720007443772,-2204.75,0.00015269,2]
[331013050,1720007443781,-645.39,0.00015269,2]
[331013051,1720007443792,-500.0,0.00015269,2]
[331013052,1720007443801,-500.0,0.00015269,2]
[331013053,1720007443811,-519.08,0.00015269,2]
[331013054,1720007443821,-500.0,0.00015269,2]
[331013055,1720007443831,-1088.27,0.00015269,2]
[331013056,1720007443840,-500.0,0.00015269,2]
[331013057,1720007443849,-500.0,0.00015269,2]
[331013058,1720007443858,-2971.74,0.00015269,2]
[331013059,1720007443868,-500.0,0.00015269,2]
[331013060,1720007443877,-500.0,0.00015269,2]
[331013061,1720007443889,-500.0,0.00015269,2]
[331013062,1720007443899,-500.0,0.00015269,2]
[331013063,1720007443908,-500.0,0.00015269,2]
[331013064,1720007443918,-500.0,0.00015269,2]
[331013065,1720007443927,-658.46,0.00015269,2]
[331013066,1720007443936,-500.0,0.00015269,2]
[331013067,1720007443946,-1766.56,0.00015269,2]
[331013068,1720007443955,-500.0,0.0001527,2]
[331013069,1720007443964,-584.69,0.0001527,2]
[331013070,1720007443974,-500.0,0.0001527,2]
[331013071,1720007443983,-507.98,0.0001527,2]
[331013072,1720007443992,-500.0,0.0001527,2]
[331013073,1720007444001,-500.0,0.0001527,2]
[331013074,1720007444010,-500.0,0.0001527,2]
[331013075,1720007444020,-500.0,0.0001527,2]
[331013076,1720007444029,-151.0,0.0001527,2]
[331013077,1720007444038,-500.0,0.0001527,2]
[331013078,1720007444048,-500.0,0.0001527,2]
[331013079,1720007444057,-500.0,0.0001527,2]
[331013080,1720007444066,-500.0,0.00015271,2]
[331013081,1720007444076,-500.0,0.00015271,2]
[331013082,1720007444086,-500.0,0.00015271,2]
[331013083,1720007444095,-500.0,0.00015271,2]
[331013084,1720007444104,-3677.96,0.00015272,2]
[331013085,1720007444113,-166.5073667,0.00015308,2]
[331013086,1720007444123,-185.537043,0.00015341,2]
[331013087,1720007444132,-500.0,0.00015341,2]
[331013088,1720007444141,-502.43,0.00015341,2]
[331013089,1720007444150,-914.47,0.00015341,2]
[331013090,1720007444159,-500.0,0.00015341,2]
[331013091,1720007444168,-500.0,0.00015341,2]
[331013092,1720007444177,-1681.57,0.00015341,2]
[331013093,1720007444187,-500.0,0.00015341,2]
[331013094,1720007444196,-301.999999,0.00015367,2]
[331013095,1720007444206,-2194.6277478,0.0001551,2]
[331013096,1720007444215,-2307.67,0.00015543,2]
[331013097,1720007444225,-500.0,0.00015543,2]
[331013098,1720007444235,-500.0,0.00015543,2]
[331013099,1720007444244,-500.0,0.00015543,2]
[331013100,1720007444254,-500.0,0.00015543,2]
[331013101,1720007444264,-500.0,0.00015543,2]
[331013102,1720007444274,-500.0,0.00015543,2]
[331013103,1720007444284,-186.282215,0.00015543,2]
[331013104,1720007444293,-500.0,0.00015543,2]
[331013105,1720007444303,-2204.75,0.00015543,2]
[331013106,1720007444313,-645.39,0.00015543,2]
[331013107,1720007444322,-500.0,0.00015543,2]
[331013108,1720007444331,-500.0,0.00015543,2]
[331013109,1720007444340,-519.08,0.00015543,2]
[331013110,1720007444350,-207.15,0.00015543,2]
[331013111,1720007444359,-1088.27,0.00015543,2]
[331013112,1720007444368,-500.0,0.00015543,2]
[331013113,1720007444378,-2971.74,0.00015543,2]
[331013114,1720007444390,-500.0,0.00015543,2]
[331013115,1720007444406,-500.0,0.00015543,2]
[331013116,1720007444415,-500.0,0.00015543,2]
[331013117,1720007444425,-500.0,0.00015543,2]
[331013118,1720007444437,-658.46,0.00015543,2]
[331013119,1720007444446,-500.0,0.00015543,2]
[331013120,1720007444455,-500.0,0.00015543,2]
[331013121,1720007444465,-1766.56,0.00015543,2]
[331013122,1720007444475,-500.0,0.00015544,2]
[331013123,1720007444485,-584.69,0.00015544,2]
[331013124,1720007444495,-500.0,0.00015544,2]
[331013125,1720007444506,-507.98,0.00015544,2]
[331013126,1720007444515,-500.0,0.00015544,2]
[331013127,1720007444525,-500.0,0.00015544,2]
[331013128,1720007444534,-500.0,0.00015544,2]
[331013129,1720007444543,-500.0,0.00015544,2]
[331013130,1720007444553,-500.0,0.00015544,2]
[331013131,1720007444562,-500.0,0.00015544,2]
[331013132,1720007444571,-500.0,0.00015545,2]
[331013133,1720007444580,-500.0,0.00015545,2]
[331013134,1720007444589,-248.93774136,0.00015545,2]
[331013135,1720007444599,-500.0,0.00015545,2]